[Event "Titled Tuesday Blitz May 16 Late 2023"]
[White "ibove"]
[Black "Ziatdinov, Raset"]
[BlackFideId "2015323"]
[WhiteElo "2278"]
[BlackElo "2220"]
[Result "0-1"]
[Round "09"]
[TimeControl "180+2"]
[Date "2023.05.16"]
[WhiteClock "0:00:27"]
[BlackClock "0:00:43"]

1. d4 {[%clk 0:03:00]}  Nf6 {[%clk 0:02:58]} 2. Nf3 {[%clk 0:02:59]}  g6 {[%clk 0:02:59]} 3. Bg5 {[%clk 0:02:59]}  Bg7 {[%clk 0:03:00]} 4. e3 {[%clk 0:02:57]}  h6 {[%clk 0:03:00]} 5. Bh4 {[%clk 0:02:56]}  O-O {[%clk 0:03:00]} 6. Nbd2 {[%clk 0:02:56]}  d6 {[%clk 0:03:00]} 7. Be2 {[%clk 0:02:55]}  Nc6 {[%clk 0:03:01]} 8. Bg3 {[%clk 0:02:54]}  Nh5 {[%clk 0:02:59]} 9. c3 {[%clk 0:02:51]}  Nxg3 {[%clk 0:02:59]} 10. hxg3 {[%clk 0:02:51]}  e5 {[%clk 0:03:00]} 11. dxe5 {[%clk 0:02:51]}  dxe5 {[%clk 0:03:00]} 12. Nc4 {[%clk 0:02:47]}  Be6 {[%clk 0:03:00]} 13. O-O {[%clk 0:02:44]}  Qe7 {[%clk 0:02:59]} 14. Qc2 {[%clk 0:02:39]}  Rfd8 {[%clk 0:02:57]} 15. Rfd1 {[%clk 0:02:38]}  f5 {[%clk 0:02:54]} 16. Nh4 {[%clk 0:02:31]}  Kh7 {[%clk 0:02:51]} 17. b4 {[%clk 0:02:21]}  e4 {[%clk 0:02:45]} 18. b5 {[%clk 0:02:06]}  Ne5 {[%clk 0:02:34]} 19. Nxe5 {[%clk 0:02:05]}  Bxe5 {[%clk 0:02:35]} 20. f4 {[%clk 0:02:06]}  Bf6 {[%clk 0:02:28]} 21. Kf2 {[%clk 0:02:03]}  g5 {[%clk 0:02:24]} 22. fxg5 {[%clk 0:02:02]}  hxg5 {[%clk 0:02:25]} 23. Nxf5 {[%clk 0:01:48]}  Bxf5 {[%clk 0:02:24]} 24. Rh1+ {[%clk 0:01:49]}  Kg7 {[%clk 0:02:24]} 25. Rh5 {[%clk 0:01:43]}  Bg6 {[%clk 0:02:13]} 26. Rh3 {[%clk 0:01:40]}  Rf8 {[%clk 0:02:13]} 27. Kg1 {[%clk 0:01:33]}  Qe5 {[%clk 0:02:02]} 28. Rd1 {[%clk 0:01:19]}  Rf7 {[%clk 0:01:57]} 29. Bc4 {[%clk 0:01:16]}  Re7 {[%clk 0:01:57]} 30. Bd5 {[%clk 0:01:09]}  c6 {[%clk 0:01:46]} 31. bxc6 {[%clk 0:01:06]}  bxc6 {[%clk 0:01:47]} 32. Bxc6 {[%clk 0:01:06]}  Rc8 {[%clk 0:01:48]} 33. Bd5 {[%clk 0:00:55]}  Qxc3 {[%clk 0:01:44]} 34. Qf2 {[%clk 0:00:51]}  Qc2 {[%clk 0:01:27]} 35. Rd2 {[%clk 0:00:45]}  Qb1+ {[%clk 0:01:17]} 36. Kh2 {[%clk 0:00:45]}  Rf8 {[%clk 0:01:15]} 37. Qe2 {[%clk 0:00:43]}  Qb8 {[%clk 0:01:13]} 38. Qg4 {[%clk 0:00:40]}  Rh8 {[%clk 0:01:02]} 39. Bb3 {[%clk 0:00:35]}  Rxh3+ {[%clk 0:00:55]} 40. Qxh3 {[%clk 0:00:36]}  Qb6 {[%clk 0:00:44]} 41. Rd8 {[%clk 0:00:27]}  Qxd8 {[%clk 0:00:43]} 0-1


[Site "https://www.chess.com"]

[Event "Titled Tuesday Blitz May 16 Late 2023"]
[White "Levar, Nenad"]
[Black "mohsengabr2002"]
[WhiteFideId "14504430"]
[WhiteElo "2095"]
[BlackElo "2355"]
[Result "0-1"]
[Round "09"]
[TimeControl "180+2"]
[Date "2023.05.16"]
[WhiteClock "0:01:10"]
[BlackClock "0:00:58"]

1. d4 {[%clk 0:02:53]}  g6 {[%clk 0:02:53]} 2. c3 {[%clk 0:02:50]}  Bg7 {[%clk 0:02:54]} 3. g3 {[%clk 0:02:50]}  d6 {[%clk 0:02:51]} 4. Bg2 {[%clk 0:02:50]}  h5 {[%clk 0:02:51]} 5. h3 {[%clk 0:02:49]}  e5 {[%clk 0:02:48]} 6. e3 {[%clk 0:02:48]}  Nc6 {[%clk 0:02:42]} 7. Ne2 {[%clk 0:02:47]}  f5 {[%clk 0:02:39]} 8. O-O {[%clk 0:02:37]}  h4 {[%clk 0:02:37]} 9. Kh2 {[%clk 0:02:33]}  hxg3+ {[%clk 0:02:36]} 10. fxg3 {[%clk 0:02:32]}  e4 {[%clk 0:02:20]} 11. Nf4 {[%clk 0:02:27]}  Qf6 {[%clk 0:02:09]} 12. Kg1 {[%clk 0:02:18]}  Nge7 {[%clk 0:02:08]} 13. h4 {[%clk 0:02:17]}  Be6 {[%clk 0:01:58]} 14. Nd2 {[%clk 0:02:12]}  Bf7 {[%clk 0:01:57]} 15. c4 {[%clk 0:02:11]}  g5 {[%clk 0:01:55]} 16. hxg5 {[%clk 0:02:08]}  Qxg5 {[%clk 0:01:55]} 17. Kf2 {[%clk 0:01:59]}  Nxd4 {[%clk 0:01:49]} 18. exd4 {[%clk 0:01:52]}  Bxd4+ {[%clk 0:01:44]} 19. Ke2 {[%clk 0:01:52]}  Qxg3 {[%clk 0:01:42]} 20. Nb3 {[%clk 0:01:42]}  Bxc4+ {[%clk 0:01:40]} 21. Kd2 {[%clk 0:01:35]}  Bxf1 {[%clk 0:01:12]} 22. Qxf1 {[%clk 0:01:33]}  Be5 {[%clk 0:01:03]} 23. Kc2 {[%clk 0:01:26]}  Rh2 {[%clk 0:01:02]} 24. Bd2 {[%clk 0:01:17]}  Bxf4 {[%clk 0:01:01]} 25. Qxf4 {[%clk 0:01:16]}  Qxf4 {[%clk 0:00:59]} 26. Bxf4 {[%clk 0:01:15]}  Rxg2+ {[%clk 0:00:59]} 27. Kc3 {[%clk 0:01:10]}  Nd5+ {[%clk 0:00:58]} 0-1


[Site "https://www.chess.com"]

[Event "Titled Tuesday Blitz May 16 Late 2023"]
[White "Howell, David W L"]
[Black "Milovic, Aleksandra"]
[WhiteFideId "410608"]
[BlackFideId "933988"]
[WhiteElo "2567"]
[BlackElo "2000"]
[Result "1-0"]
[Round "09"]
[TimeControl "180+2"]
[Date "2023.05.16"]
[WhiteClock "0:02:01"]
[BlackClock "0:00:30"]

1. e4 {[%clk 0:03:00]}  e5 {[%clk 0:02:55]} 2. Nf3 {[%clk 0:02:59]}  Nf6 {[%clk 0:02:55]} 3. Nxe5 {[%clk 0:02:53]}  d6 {[%clk 0:02:54]} 4. Nf3 {[%clk 0:02:51]}  Nxe4 {[%clk 0:02:53]} 5. c4 {[%clk 0:02:45]}  d5 {[%clk 0:02:49]} 6. Nc3 {[%clk 0:02:42]}  Nxc3 {[%clk 0:02:48]} 7. dxc3 {[%clk 0:02:43]}  Be6 {[%clk 0:02:46]} 8. Ng5 {[%clk 0:02:38]}  dxc4 {[%clk 0:02:41]} 9. Qxd8+ {[%clk 0:02:36]}  Kxd8 {[%clk 0:02:41]} 10. Nxe6+ {[%clk 0:02:37]}  fxe6 {[%clk 0:02:41]} 11. Bxc4 {[%clk 0:02:38]}  Ke7 {[%clk 0:02:41]} 12. Bf4 {[%clk 0:02:35]}  Nd7 {[%clk 0:02:38]} 13. O-O-O {[%clk 0:02:33]}  e5 {[%clk 0:02:34]} 14. Rhe1 {[%clk 0:02:31]}  g6 {[%clk 0:02:15]} 15. Bg5+ {[%clk 0:02:29]}  Ke8 {[%clk 0:02:12]} 16. Be6 {[%clk 0:02:28]}  Nb6 {[%clk 0:01:59]} 17. Rxe5 {[%clk 0:02:18]}  Bg7 {[%clk 0:01:59]} 18. Re4 {[%clk 0:02:15]}  Kf8 {[%clk 0:01:56]} 19. Rf4+ {[%clk 0:02:11]}  Ke8 {[%clk 0:01:53]} 20. Bf7+ {[%clk 0:02:12]}  Kf8 {[%clk 0:01:53]} 21. Bxg6+ {[%clk 0:02:11]}  Kg8 {[%clk 0:01:51]} 22. Bf7+ {[%clk 0:02:11]}  Kf8 {[%clk 0:01:51]} 23. Bb3+ {[%clk 0:01:59]}  Ke8 {[%clk 0:01:51]} 24. Re4+ {[%clk 0:02:00]}  Kf8 {[%clk 0:01:50]} 25. Be7+ {[%clk 0:02:00]}  Ke8 {[%clk 0:01:49]} 26. Ba3+ {[%clk 0:02:00]}  Be5 {[%clk 0:00:30]} 27. Rxe5# {[%clk 0:02:01]} 1-0


[Site "https://www.chess.com"]

[Event "Titled Tuesday Blitz May 16 Late 2023"]
[White "Kowalysko, Roman"]
[Black "Hnydiuk, Aleksander"]
[WhiteFideId "30918510"]
[BlackFideId "1109057"]
[WhiteElo "2192"]
[BlackElo "2374"]
[Result "1-0"]
[Round "09"]
[TimeControl "180+2"]
[Date "2023.05.16"]
[WhiteClock "0:01:18"]
[BlackClock "0:00:00"]

1. e4 {[%clk 0:03:00]}  c6 {[%clk 0:01:44]} 2. Nf3 {[%clk 0:02:59]}  d5 {[%clk 0:01:44]} 3. exd5 {[%clk 0:02:59]}  cxd5 {[%clk 0:01:42]} 4. Ne5 {[%clk 0:02:59]}  Nf6 {[%clk 0:01:31]} 5. d4 {[%clk 0:02:59]}  Bf5 {[%clk 0:01:28]} 6. Qf3 {[%clk 0:02:53]}  e6 {[%clk 0:01:27]} 7. Bb5+ {[%clk 0:02:43]}  Nbd7 {[%clk 0:01:15]} 8. Nc3 {[%clk 0:02:38]}  Bb4 {[%clk 0:01:05]} 9. O-O {[%clk 0:02:38]}  O-O {[%clk 0:01:03]} 10. Nxd7 {[%clk 0:02:34]}  Nxd7 {[%clk 0:01:01]} 11. Nxd5 {[%clk 0:02:33]}  Bd6 {[%clk 0:00:22]} 12. Ne3 {[%clk 0:02:32]}  Bg6 {[%clk 0:00:19]} 13. Nc4 {[%clk 0:02:24]}  Bc7 {[%clk 0:00:15]} 14. c3 {[%clk 0:02:11]}  Nf6 {[%clk 0:00:12]} 15. Ne5 {[%clk 0:02:09]}  a6 {[%clk 0:00:10]} 16. Bc4 {[%clk 0:01:52]}  Be4 {[%clk 0:00:03]} 17. Qg3 {[%clk 0:01:39]}  b5 {[%clk 0:00:03]} 18. Be2 {[%clk 0:01:27]}  Nd7 {[%clk 0:00:03]} 19. Bh6 {[%clk 0:01:16]}  Bg6 {[%clk 0:00:02]} 20. Bf4 {[%clk 0:01:17]}  Nxe5 {[%clk 0:00:00]} 21. Bxe5 {[%clk 0:01:18]} 1-0


[Site "https://www.chess.com"]

[Event "Titled Tuesday Blitz May 16 Late 2023"]
[White "Winkels, Marcel"]
[Black "Mikhalsky, Vladimir"]
[WhiteFideId "1003887"]
[BlackFideId "14144352"]
[WhiteElo "1900"]
[BlackElo "2236"]
[Result "0-1"]
[Round "09"]
[TimeControl "180+2"]
[Date "2023.05.16"]
[WhiteClock "0:00:00"]
[BlackClock "0:00:52"]

1. d4 {[%clk 0:03:00]}  Nf6 {[%clk 0:02:55]} 2. Nc3 {[%clk 0:03:01]}  g6 {[%clk 0:02:52]} 3. e4 {[%clk 0:02:59]}  d6 {[%clk 0:02:52]} 4. f4 {[%clk 0:02:59]}  Bg7 {[%clk 0:02:52]} 5. Nf3 {[%clk 0:03:00]}  O-O {[%clk 0:02:52]} 6. Be2 {[%clk 0:03:00]}  c5 {[%clk 0:02:51]} 7. dxc5 {[%clk 0:03:00]}  Qa5 {[%clk 0:02:52]} 8. O-O {[%clk 0:03:01]}  Qxc5+ {[%clk 0:02:51]} 9. Kh1 {[%clk 0:03:01]}  Ng4 {[%clk 0:02:39]} 10. Qe1 {[%clk 0:02:52]}  Bxc3 {[%clk 0:02:38]} 11. bxc3 {[%clk 0:02:48]}  Ne3 {[%clk 0:02:36]} 12. Bxe3 {[%clk 0:02:22]}  Qxe3 {[%clk 0:02:35]} 13. Bd3 {[%clk 0:01:56]}  Qxe1 {[%clk 0:02:21]} 14. Rfxe1 {[%clk 0:01:56]}  Bg4 {[%clk 0:02:16]} 15. Rab1 {[%clk 0:01:50]}  b6 {[%clk 0:02:15]} 16. Nd4 {[%clk 0:01:45]}  e5 {[%clk 0:02:12]} 17. Nb5 {[%clk 0:01:41]}  Nc6 {[%clk 0:02:10]} 18. Nxd6 {[%clk 0:01:31]}  exf4 {[%clk 0:02:09]} 19. e5 {[%clk 0:01:28]}  Rad8 {[%clk 0:01:59]} 20. Ne4 {[%clk 0:01:20]}  Kg7 {[%clk 0:01:46]} 21. Nf6 {[%clk 0:01:18]}  Nxe5 {[%clk 0:01:39]} 22. Rxe5 {[%clk 0:00:32]}  Kxf6 {[%clk 0:01:37]} 23. Rbe1 {[%clk 0:00:31]}  f3 {[%clk 0:01:28]} 24. R5e4 {[%clk 0:00:26]}  fxg2+ {[%clk 0:01:27]} 25. Kxg2 {[%clk 0:00:26]}  Be6 {[%clk 0:01:20]} 26. R1e2 {[%clk 0:00:18]}  Bd5 {[%clk 0:01:20]} 27. Kf3 {[%clk 0:00:15]}  Bxe4+ {[%clk 0:01:19]} 28. Bxe4 {[%clk 0:00:15]}  Rfe8 {[%clk 0:01:17]} 29. Rf2 {[%clk 0:00:13]}  Kg7 {[%clk 0:01:16]} 30. Bd3 {[%clk 0:00:12]}  f5 {[%clk 0:01:16]} 31. Kf4 {[%clk 0:00:12]}  Kf6 {[%clk 0:01:15]} 32. h4 {[%clk 0:00:12]}  h6 {[%clk 0:01:13]} 33. Rg2 {[%clk 0:00:11]}  Rg8 {[%clk 0:01:09]} 34. Rg1 {[%clk 0:00:10]}  g5+ {[%clk 0:01:09]} 35. hxg5+ {[%clk 0:00:10]}  hxg5+ {[%clk 0:01:09]} 36. Kf3 {[%clk 0:00:10]}  Rh8 {[%clk 0:01:08]} 37. Kg3 {[%clk 0:00:09]}  Rde8 {[%clk 0:01:05]} 38. Rf1 {[%clk 0:00:09]}  Re3+ {[%clk 0:01:02]} 39. Kg2 {[%clk 0:00:07]}  f4 {[%clk 0:01:00]} 40. c4 {[%clk 0:00:06]}  Ke5 {[%clk 0:00:59]} 41. a4 {[%clk 0:00:05]}  g4 {[%clk 0:00:59]} 42. Rd1 {[%clk 0:00:05]}  Rhh3 {[%clk 0:00:55]} 43. Bf1 {[%clk 0:00:03]}  Reg3+ {[%clk 0:00:53]} 44. Kf2 {[%clk 0:00:03]}  Rh2+ {[%clk 0:00:53]} 45. Ke1 {[%clk 0:00:00]}  Re3+ {[%clk 0:00:52]} 0-1


[Site "https://www.chess.com"]

[Event "Titled Tuesday Blitz May 16 Late 2023"]
[White "ritanovikova"]
[Black "Xavier_mompel"]
[WhiteElo "2140"]
[BlackElo "2234"]
[Result "1-0"]
[Round "09"]
[TimeControl "180+2"]
[Date "2023.05.16"]
[WhiteClock "0:02:21"]
[BlackClock "0:00:57"]

1. e4 {[%clk 0:02:59]}  c5 {[%clk 0:02:59]} 2. Nc3 {[%clk 0:02:59]}  e6 {[%clk 0:02:58]} 3. d3 {[%clk 0:03:00]}  Nc6 {[%clk 0:02:58]} 4. g3 {[%clk 0:03:00]}  Nf6 {[%clk 0:02:58]} 5. Bg2 {[%clk 0:03:01]}  d5 {[%clk 0:02:58]} 6. exd5 {[%clk 0:03:00]}  exd5 {[%clk 0:02:59]} 7. Nge2 {[%clk 0:03:00]}  Bd6 {[%clk 0:02:59]} 8. Bf4 {[%clk 0:03:00]}  d4 {[%clk 0:02:41]} 9. Ne4 {[%clk 0:02:52]}  Nxe4 {[%clk 0:02:37]} 10. Bxe4 {[%clk 0:02:51]}  O-O {[%clk 0:02:33]} 11. O-O {[%clk 0:02:38]}  Bh3 {[%clk 0:02:23]} 12. Re1 {[%clk 0:02:38]}  Re8 {[%clk 0:02:12]} 13. Bxd6 {[%clk 0:02:33]}  Qxd6 {[%clk 0:02:12]} 14. Nf4 {[%clk 0:02:33]}  Bd7 {[%clk 0:02:04]} 15. Qh5 {[%clk 0:02:26]}  g6 {[%clk 0:01:56]} 16. Qh6 {[%clk 0:02:26]}  Ne5 {[%clk 0:00:57]} 17. Nh5 {[%clk 0:02:21]} 1-0


[Site "https://www.chess.com"]

[Event "Titled Tuesday Blitz May 16 Late 2023"]
[White "rikchessmx"]
[Black "Chessadiction1990"]
[WhiteElo "2227"]
[BlackElo "2134"]
[Result "1-0"]
[Round "09"]
[TimeControl "180+2"]
[Date "2023.05.16"]
[WhiteClock "0:02:33"]
[BlackClock "0:00:27"]

1. e4 {[%clk 0:02:58]}  c5 {[%clk 0:02:59]} 2. Nf3 {[%clk 0:02:58]}  d6 {[%clk 0:03:00]} 3. d4 {[%clk 0:02:58]}  cxd4 {[%clk 0:03:01]} 4. Nxd4 {[%clk 0:02:59]}  Nf6 {[%clk 0:03:01]} 5. Nc3 {[%clk 0:03:00]}  g6 {[%clk 0:03:02]} 6. f4 {[%clk 0:03:00]}  Nc6 {[%clk 0:02:59]} 7. Nxc6 {[%clk 0:03:00]}  bxc6 {[%clk 0:02:59]} 8. Bd3 {[%clk 0:03:00]}  Bg7 {[%clk 0:02:56]} 9. O-O {[%clk 0:03:01]}  O-O {[%clk 0:02:55]} 10. Kh1 {[%clk 0:03:01]}  Qc7 {[%clk 0:02:26]} 11. Qe1 {[%clk 0:02:59]}  e5 {[%clk 0:02:19]} 12. f5 {[%clk 0:02:58]}  d5 {[%clk 0:02:12]} 13. Bg5 {[%clk 0:02:53]}  d4 {[%clk 0:02:10]} 14. Ne2 {[%clk 0:02:51]}  a5 {[%clk 0:02:01]} 15. Qh4 {[%clk 0:02:50]}  Nd7 {[%clk 0:01:36]} 16. Be7 {[%clk 0:02:48]}  Re8 {[%clk 0:01:20]} 17. fxg6 {[%clk 0:02:46]}  hxg6 {[%clk 0:01:10]} 18. Bc4 {[%clk 0:02:41]}  Nf6 {[%clk 0:00:43]} 19. Bxf6 {[%clk 0:02:39]}  Be6 {[%clk 0:00:43]} 20. Bxe6 {[%clk 0:02:37]}  Rxe6 {[%clk 0:00:44]} 21. Bxg7 {[%clk 0:02:37]}  Kxg7 {[%clk 0:00:45]} 22. Qg3 {[%clk 0:02:35]}  Rh8 {[%clk 0:00:42]} 23. Nxd4 {[%clk 0:02:34]}  Re7 {[%clk 0:00:27]} 24. Nf5+ {[%clk 0:02:33]} 1-0


[Site "https://www.chess.com"]

[Event "Titled Tuesday Blitz May 16 Late 2023"]
[White "Manu_ChessExcelsior"]
[Black "KorolDimitriy75"]
[WhiteElo "2053"]
[BlackElo "2413"]
[Result "0-1"]
[Round "09"]
[TimeControl "180+2"]
[Date "2023.05.16"]
[WhiteClock "0:00:12"]
[BlackClock "0:00:11"]

1. e4 {[%clk 0:03:00]}  c5 {[%clk 0:03:00]} 2. g3 {[%clk 0:03:01]}  g6 {[%clk 0:02:59]} 3. Bg2 {[%clk 0:03:01]}  Bg7 {[%clk 0:03:00]} 4. d3 {[%clk 0:03:02]}  Nc6 {[%clk 0:03:01]} 5. f4 {[%clk 0:03:02]}  d6 {[%clk 0:03:01]} 6. Nf3 {[%clk 0:03:03]}  e5 {[%clk 0:03:02]} 7. O-O {[%clk 0:03:03]}  Nge7 {[%clk 0:03:02]} 8. c3 {[%clk 0:02:51]}  O-O {[%clk 0:03:02]} 9. Be3 {[%clk 0:02:49]}  h6 {[%clk 0:03:00]} 10. f5 {[%clk 0:02:43]}  gxf5 {[%clk 0:02:56]} 11. Nh4 {[%clk 0:02:43]}  f4 {[%clk 0:02:10]} 12. gxf4 {[%clk 0:02:39]}  exf4 {[%clk 0:02:05]} 13. Bxf4 {[%clk 0:02:33]}  Ng6 {[%clk 0:02:00]} 14. Nxg6 {[%clk 0:02:11]}  fxg6 {[%clk 0:02:00]} 15. Na3 {[%clk 0:01:57]}  g5 {[%clk 0:01:39]} 16. Be3 {[%clk 0:01:44]}  Be6 {[%clk 0:01:34]} 17. Qd2 {[%clk 0:01:31]}  Qd7 {[%clk 0:01:32]} 18. d4 {[%clk 0:01:09]}  Rxf1+ {[%clk 0:00:54]} 19. Rxf1 {[%clk 0:01:07]}  cxd4 {[%clk 0:00:50]} 20. cxd4 {[%clk 0:01:08]}  Bxa2 {[%clk 0:00:43]} 21. e5 {[%clk 0:00:40]}  dxe5 {[%clk 0:00:40]} 22. d5 {[%clk 0:00:40]}  Nd4 {[%clk 0:00:39]} 23. Be4 {[%clk 0:00:26]}  Bxd5 {[%clk 0:00:37]} 24. Qd3 {[%clk 0:00:25]}  Bxe4 {[%clk 0:00:26]} 25. Qxe4 {[%clk 0:00:26]}  Qc6 {[%clk 0:00:26]} 26. Qg4 {[%clk 0:00:20]}  Rf8 {[%clk 0:00:20]} 27. Rc1 {[%clk 0:00:18]}  Qd5 {[%clk 0:00:17]} 28. Nc4 {[%clk 0:00:18]}  b5 {[%clk 0:00:14]} 29. Nd2 {[%clk 0:00:17]}  e4 {[%clk 0:00:13]} 30. Nf1 {[%clk 0:00:15]}  Nf3+ {[%clk 0:00:12]} 31. Kg2 {[%clk 0:00:15]}  Qd3 {[%clk 0:00:11]} 32. Rc7 {[%clk 0:00:13]}  Qe2+ {[%clk 0:00:10]} 33. Bf2 {[%clk 0:00:13]}  Ne1+ {[%clk 0:00:10]} 34. Kg1 {[%clk 0:00:13]}  Qxf2+ {[%clk 0:00:10]} 35. Kh1 {[%clk 0:00:13]}  Qxf1+ {[%clk 0:00:10]} 36. Qg1 {[%clk 0:00:12]}  Qf3+ {[%clk 0:00:11]} 37. Qg2 {[%clk 0:00:12]}  Qxg2# {[%clk 0:00:11]} 0-1


[Site "https://www.chess.com"]

[Event "Titled Tuesday Blitz May 16 Late 2023"]
[White "Escalante Ramirez, Rafael"]
[Black "Curtis, John"]
[WhiteFideId "3900177"]
[BlackFideId "3200256"]
[WhiteElo "2231"]
[BlackElo "2203"]
[Result "0-1"]
[Round "09"]
[TimeControl "180+2"]
[Date "2023.05.16"]
[WhiteClock "0:00:17"]
[BlackClock "0:01:32"]

1. Nf3 {[%clk 0:02:56]}  d5 {[%clk 0:02:59]} 2. d4 {[%clk 0:02:55]}  c6 {[%clk 0:02:59]} 3. c4 {[%clk 0:02:55]}  Nf6 {[%clk 0:02:58]} 4. e3 {[%clk 0:02:55]}  Bf5 {[%clk 0:02:57]} 5. Nc3 {[%clk 0:02:55]}  e6 {[%clk 0:02:58]} 6. Bd3 {[%clk 0:02:55]}  Bxd3 {[%clk 0:02:57]} 7. Qxd3 {[%clk 0:02:55]}  Be7 {[%clk 0:02:56]} 8. O-O {[%clk 0:02:55]}  O-O {[%clk 0:02:55]} 9. e4 {[%clk 0:02:56]}  dxe4 {[%clk 0:02:55]} 10. Nxe4 {[%clk 0:02:57]}  Nxe4 {[%clk 0:02:55]} 11. Qxe4 {[%clk 0:02:57]}  Nd7 {[%clk 0:02:55]} 12. Bf4 {[%clk 0:02:56]}  Nf6 {[%clk 0:02:56]} 13. Qe2 {[%clk 0:02:56]}  Bd6 {[%clk 0:02:55]} 14. Bg5 {[%clk 0:02:55]}  h6 {[%clk 0:02:54]} 15. Bh4 {[%clk 0:02:52]}  Be7 {[%clk 0:02:53]} 16. Rad1 {[%clk 0:02:52]}  Re8 {[%clk 0:02:53]} 17. Ne5 {[%clk 0:02:50]}  Nd7 {[%clk 0:02:53]} 18. Bg3 {[%clk 0:02:37]}  Nxe5 {[%clk 0:02:51]} 19. Bxe5 {[%clk 0:02:29]}  Bf6 {[%clk 0:02:44]} 20. Rd3 {[%clk 0:02:28]}  Qe7 {[%clk 0:02:42]} 21. f4 {[%clk 0:02:06]}  Rad8 {[%clk 0:02:40]} 22. Kh1 {[%clk 0:01:40]}  Rd7 {[%clk 0:02:40]} 23. Rb3 {[%clk 0:01:28]}  Bxe5 {[%clk 0:02:34]} 24. dxe5 {[%clk 0:01:27]}  Red8 {[%clk 0:02:30]} 25. h3 {[%clk 0:01:24]}  c5 {[%clk 0:02:22]} 26. Qf3 {[%clk 0:01:23]}  b6 {[%clk 0:02:21]} 27. Re3 {[%clk 0:01:22]}  Rd2 {[%clk 0:02:20]} 28. Re2 {[%clk 0:01:20]}  R2d3 {[%clk 0:02:10]} 29. Qg4 {[%clk 0:01:16]}  R8d4 {[%clk 0:02:09]} 30. b3 {[%clk 0:01:12]}  g6 {[%clk 0:02:06]} 31. Rf3 {[%clk 0:01:07]}  h5 {[%clk 0:02:06]} 32. Qg3 {[%clk 0:01:05]}  Rxf3 {[%clk 0:01:59]} 33. Qxf3 {[%clk 0:01:05]}  Qd7 {[%clk 0:01:58]} 34. Kh2 {[%clk 0:01:01]}  Rd3 {[%clk 0:01:57]} 35. Qa8+ {[%clk 0:01:00]}  Kg7 {[%clk 0:01:57]} 36. Rf2 {[%clk 0:00:48]}  h4 {[%clk 0:01:54]} 37. Qe4 {[%clk 0:00:43]}  Rd1 {[%clk 0:01:53]} 38. Re2 {[%clk 0:00:37]}  Qd4 {[%clk 0:01:49]} 39. Qe3 {[%clk 0:00:24]}  Qa1 {[%clk 0:01:37]} 40. g4 {[%clk 0:00:17]}  Rh1+ {[%clk 0:01:32]} 0-1


[Site "https://www.chess.com"]

[Event "Titled Tuesday Blitz May 16 Late 2023"]
[White "Barria Santos, Jose Guilherme"]
[Black "Joubert, Dantelle"]
[WhiteFideId "1939300"]
[BlackFideId "14310813"]
[WhiteElo "2266"]
[BlackElo "1507"]
[Result "1-0"]
[Round "09"]
[TimeControl "180+2"]
[Date "2023.05.16"]
[WhiteClock "0:01:00"]
[BlackClock "0:00:00"]

1. e4 {[%clk 0:02:59]}  c5 {[%clk 0:02:58]} 2. Nf3 {[%clk 0:02:50]}  d6 {[%clk 0:02:58]} 3. d4 {[%clk 0:02:41]}  cxd4 {[%clk 0:02:57]} 4. Nxd4 {[%clk 0:02:42]}  Nf6 {[%clk 0:02:56]} 5. Nc3 {[%clk 0:02:41]}  g6 {[%clk 0:02:56]} 6. Be3 {[%clk 0:02:37]}  Bg7 {[%clk 0:02:49]} 7. Qd2 {[%clk 0:02:36]}  Nc6 {[%clk 0:02:46]} 8. f3 {[%clk 0:02:36]}  O-O {[%clk 0:02:45]} 9. O-O-O {[%clk 0:02:35]}  d5 {[%clk 0:02:44]} 10. exd5 {[%clk 0:02:35]}  Nxd5 {[%clk 0:02:43]} 11. Nxc6 {[%clk 0:02:35]}  bxc6 {[%clk 0:02:42]} 12. Bd4 {[%clk 0:02:35]}  e5 {[%clk 0:02:31]} 13. Bc5 {[%clk 0:02:35]}  Be6 {[%clk 0:02:29]} 14. Ne4 {[%clk 0:02:30]}  Qh4 {[%clk 0:02:01]} 15. g3 {[%clk 0:02:20]}  Qh5 {[%clk 0:01:56]} 16. g4 {[%clk 0:02:14]}  Qh4 {[%clk 0:01:54]} 17. Bf2 {[%clk 0:02:07]}  Qd8 {[%clk 0:01:50]} 18. h4 {[%clk 0:02:04]}  Rb8 {[%clk 0:01:39]} 19. h5 {[%clk 0:01:39]}  Nb4 {[%clk 0:01:36]} 20. a3 {[%clk 0:01:27]}  Na2+ {[%clk 0:01:22]} 21. Kb1 {[%clk 0:01:27]}  Qxd2 {[%clk 0:01:20]} 22. Rxd2 {[%clk 0:01:20]}  f5 {[%clk 0:01:15]} 23. Ng5 {[%clk 0:01:21]}  Nc3+ {[%clk 0:00:51]} 24. Ka1 {[%clk 0:01:07]}  Bh6 {[%clk 0:00:45]} 25. Nxe6 {[%clk 0:01:04]}  Bxd2 {[%clk 0:00:45]} 26. Nxf8 {[%clk 0:01:05]}  Kxf8 {[%clk 0:00:44]} 27. Bc5+ {[%clk 0:01:02]}  Ke8 {[%clk 0:00:42]} 28. Bb4 {[%clk 0:01:03]}  Ne4 {[%clk 0:00:10]} 29. fxe4 {[%clk 0:01:04]}  Bxb4 {[%clk 0:00:09]} 30. axb4 {[%clk 0:01:02]}  Rxb4 {[%clk 0:00:09]} 31. hxg6 {[%clk 0:01:03]}  hxg6 {[%clk 0:00:09]} 32. exf5 {[%clk 0:01:02]}  Rxg4 {[%clk 0:00:07]} 33. fxg6 {[%clk 0:01:01]}  Rxg6 {[%clk 0:00:07]} 34. Bd3 {[%clk 0:01:01]}  Rg4 {[%clk 0:00:05]} 35. Re1 {[%clk 0:01:01]}  Rg5 {[%clk 0:00:03]} 36. Kb1 {[%clk 0:01:01]}  Kd7 {[%clk 0:00:03]} 37. Re4 {[%clk 0:01:00]}  Kc7 {[%clk 0:00:03]} 38. Ka2 {[%clk 0:01:00]}  Kb6 {[%clk 0:00:03]} 39. Kb3 {[%clk 0:01:00]}  a5 {[%clk 0:00:02]} 40. Kc4 {[%clk 0:01:00]}  Rh5 {[%clk 0:00:01]} 41. Re2 {[%clk 0:01:00]}  Rh4+ {[%clk 0:00:00]} 42. Kc3 {[%clk 0:01:00]} 1-0


[Site "https://www.chess.com"]

[Event "Titled Tuesday Blitz May 16 Late 2023"]
[White "Stead, Kerry"]
[Black "Sanchez, Robert"]
[WhiteFideId "3202577"]
[BlackFideId "2034360"]
[WhiteElo "1997"]
[BlackElo "1857"]
[Result "1-0"]
[Round "09"]
[TimeControl "180+2"]
[Date "2023.05.16"]
[WhiteClock "0:02:25"]
[BlackClock "0:02:24"]

1. d4 {[%clk 0:02:57]}  Nf6 {[%clk 0:02:36]} 2. f3 {[%clk 0:02:56]}  e6 {[%clk 0:02:36]} 3. e4 {[%clk 0:02:53]}  d5 {[%clk 0:02:36]} 4. Be3 {[%clk 0:02:51]}  dxe4 {[%clk 0:02:34]} 5. Nd2 {[%clk 0:02:52]}  Nd5 {[%clk 0:02:33]} 6. Qe2 {[%clk 0:02:51]}  Nxe3 {[%clk 0:02:31]} 7. Qxe3 {[%clk 0:02:51]}  exf3 {[%clk 0:02:31]} 8. Ngxf3 {[%clk 0:02:51]}  Be7 {[%clk 0:02:32]} 9. Bd3 {[%clk 0:02:51]}  O-O {[%clk 0:02:32]} 10. O-O {[%clk 0:02:51]}  Nc6 {[%clk 0:02:32]} 11. c3 {[%clk 0:02:51]}  Bd7 {[%clk 0:02:31]} 12. Rae1 {[%clk 0:02:50]}  a6 {[%clk 0:02:30]} 13. Nc4 {[%clk 0:02:46]}  b5 {[%clk 0:02:27]} 14. Nce5 {[%clk 0:02:41]}  Nxe5 {[%clk 0:02:27]} 15. Nxe5 {[%clk 0:02:38]}  c5 {[%clk 0:02:25]} 16. dxc5 {[%clk 0:02:28]}  Rc8 {[%clk 0:02:25]} 17. b4 {[%clk 0:02:26]}  Bc6 {[%clk 0:02:24]} 18. Nxc6 {[%clk 0:02:25]} 1-0


[Site "https://www.chess.com"]